[Event "*** Titled Tuesday Blitz"]
[Site "Chess.com"]
[Date "2020.04.07"]
[Round "4"]
[White "severomorskij"]
[Black "SerGo055"]
[Result "1-0"]
[WhiteElo "2842"]
[BlackElo "2528"]
[TimeControl "180+1"]
[EndTime "13:41:14 PDT"]
[Termination "severomorskij won on time"]

1. d4 {[%clk 0:03:00.9]} 1... Nf6 {[%clk 0:02:59.1]} 2. c4 {[%clk 0:03:00.4]}
2... e6 {[%clk 0:02:59.1]} 3. Nc3 {[%clk 0:03:00.5]} 3... d5 {[%clk 0:02:59]} 4.
cxd5 {[%clk 0:02:59.3]} 4... exd5 {[%clk 0:02:58.5]} 5. Bg5 {[%clk 0:02:59.2]}
5... c6 {[%clk 0:02:57.8]} 6. e3 {[%clk 0:02:59.3]} 6... Be7 {[%clk 0:02:57.6]}
7. Bd3 {[%clk 0:02:58.9]} 7... Nbd7 {[%clk 0:02:56.2]} 8. Nge2 {[%clk
0:02:58.8]} 8... Nh5 {[%clk 0:02:55.4]} 9. Bxe7 {[%clk 0:02:53.4]} 9... Qxe7
{[%clk 0:02:56.3]} 10. g4 {[%clk 0:02:52.5]} 10... Nhf6 {[%clk 0:02:53.3]} 11.
h3 {[%clk 0:02:51.5]} 11... Nb6 {[%clk 0:02:41.1]} 12. Qc2 {[%clk 0:02:48.7]}
12... Be6 {[%clk 0:02:38]} 13. O-O-O {[%clk 0:02:48.7]} 13... O-O-O {[%clk
0:02:37.3]} 14. Kb1 {[%clk 0:02:48.9]} 14... Kb8 {[%clk 0:02:35.6]} 15. Nf4
{[%clk 0:02:48.1]} 15... Bc8 {[%clk 0:02:24.8]} 16. g5 {[%clk 0:02:47]} 16...
Ne8 {[%clk 0:02:21.4]} 17. h4 {[%clk 0:02:45.9]} 17... Nd6 {[%clk 0:02:20.4]}
18. Rc1 {[%clk 0:02:37]} 18... h6 {[%clk 0:02:17.8]} 19. g6 {[%clk 0:02:34.2]}
19... f6 {[%clk 0:02:13]} 20. Na4 {[%clk 0:02:28.9]} 20... Rhe8 {[%clk
0:02:03.8]} 21. Nxb6 {[%clk 0:02:04.5]} 21... axb6 {[%clk 0:02:00.8]} 22. Rhe1
{[%clk 0:02:01.4]} 22... Bg4 {[%clk 0:01:51.2]} 23. a4 {[%clk 0:01:50.9]} 23...
Bf3 {[%clk 0:01:39.1]} 24. Qb3 {[%clk 0:01:48.3]} 24... Ka7 {[%clk 0:01:31.2]}
25. a5 {[%clk 0:01:40.7]} 25... b5 {[%clk 0:01:17.7]} 26. a6 {[%clk 0:01:34.6]}
26... Be4 {[%clk 0:01:01.6]} 27. axb7 {[%clk 0:01:30]} 27... Nc4 {[%clk
0:00:55.3]} 28. Kc2 {[%clk 0:00:54.7]} 28... Kxb7 {[%clk 0:00:46.4]} 29. Ra1
{[%clk 0:00:52.9]} 29... Ra8 {[%clk 0:00:39.8]} 30. Qc3 {[%clk 0:00:52.4]} 30...
Qd6 {[%clk 0:00:34.2]} 31. h5 {[%clk 0:00:38.5]} 31... f5 {[%clk 0:00:22.4]} 32.
Rec1 {[%clk 0:00:29.5]} 32... Rxa1 {[%clk 0:00:13.5]} 33. Rxa1 {[%clk
0:00:28.3]} 33... Ra8 {[%clk 0:00:14.4]} 34. Rxa8 {[%clk 0:00:27.5]} 34... Kxa8
{[%clk 0:00:14.8]} 35. b3 {[%clk 0:00:23.5]} 35... Nb6 {[%clk 0:00:06.5]} 36.
Qc5 {[%clk 0:00:21.8]} 36... Qxc5+ {[%clk 0:00:05.9]} 37. dxc5 {[%clk
0:00:21.7]} 37... Nd7 {[%clk 0:00:06.5]} 38. Bxe4 {[%clk 0:00:17.7]} 38... fxe4
{[%clk 0:00:02.9]} 39. Ne6 {[%clk 0:00:17.9]} 39... Kb8 {[%clk 0:00:02.8]} 40.
Nxg7 {[%clk 0:00:15.2]} 40... Nf6 {[%clk 0:00:03]} 41. Nf5 {[%clk 0:00:12.8]}
41... Nxh5 {[%clk 0:00:03.2]} 42. g7 {[%clk 0:00:12.5]} 42... Nxg7 {[%clk
0:00:01.9]} 43. Nxg7 {[%clk 0:00:12.5]} 43... Kc7 {[%clk 0:00:02.6]} 44. Kc3
{[%clk 0:00:11]} 44... Kd7 {[%clk 0:00:02.3]} 45. Kd4 {[%clk 0:00:10.7]} 1-0

[Event "*** Titled Tuesday Blitz"]
[Site "Chess.com"]
[Date "2020.04.07"]
[Round "4"]
[White "rasmussvane"]
[Black "iLuusions"]
[Result "1-0"]
[WhiteElo "2866"]
[BlackElo "2590"]
[TimeControl "180+1"]
[EndTime "13:41:14 PDT"]
[Termination "rasmussvane won by resignation"]

1. Nf3 {[%clk 0:03:00.9]} 1... Nf6 {[%clk 0:02:58.4]} 2. g3 {[%clk 0:03:00.8]}
2... d5 {[%clk 0:02:55.1]} 3. Bg2 {[%clk 0:03:00.6]} 3... c6 {[%clk 0:02:55.5]}
4. O-O {[%clk 0:03:00.9]} 4... Bg4 {[%clk 0:02:55.3]} 5. h3 {[%clk 0:03:01.3]}
5... Bxf3 {[%clk 0:02:51.4]} 6. Bxf3 {[%clk 0:03:02.2]} 6... e5 {[%clk
0:02:50.8]} 7. d3 {[%clk 0:03:02.4]} 7... Nbd7 {[%clk 0:02:50.6]} 8. e4 {[%clk
0:03:03]} 8... Bd6 {[%clk 0:02:24.9]} 9. Nc3 {[%clk 0:03:03.1]} 9... dxe4 {[%clk
0:02:14.4]} 10. Nxe4 {[%clk 0:03:04]} 10... Be7 {[%clk 0:02:09.3]} 11. a4 {[%clk
0:03:03]} 11... a5 {[%clk 0:02:08.9]} 12. Qe2 {[%clk 0:03:01.7]} 12... O-O
{[%clk 0:02:08.4]} 13. Bd2 {[%clk 0:03:00.8]} 13... Qc7 {[%clk 0:02:05.7]} 14.
h4 {[%clk 0:02:42.7]} 14... h6 {[%clk 0:01:57.4]} 15. Kg2 {[%clk 0:02:39.9]}
15... Nd5 {[%clk 0:01:56.6]} 16. Nc3 {[%clk 0:02:37.8]} 16... Nxc3 {[%clk
0:00:59]} 17. Bxc3 {[%clk 0:02:36.1]} 17... f5 {[%clk 0:00:59.3]} 18. Rae1
{[%clk 0:02:23.9]} 18... Bf6 {[%clk 0:00:56.8]} 19. Bh5 {[%clk 0:02:24.1]} 19...
Kh7 {[%clk 0:00:46.2]} 20. Kg1 {[%clk 0:02:24]} 20... g6 {[%clk 0:00:39.7]} 21.
Bf3 {[%clk 0:02:23.9]} 21... Rae8 {[%clk 0:00:40]} 22. h5 {[%clk 0:02:18.3]}
22... Nc5 {[%clk 0:00:32.4]} 23. hxg6+ {[%clk 0:02:17.2]} 23... Kg7 {[%clk
0:00:32.9]} 24. b3 {[%clk 0:02:07.8]} 24... e4 {[%clk 0:00:17]} 25. Bxf6+ {[%clk
0:02:08.7]} 25... Rxf6 {[%clk 0:00:14.5]} 26. Bh5 {[%clk 0:01:44.6]} 26... Rfe6
{[%clk 0:00:04.9]} 27. dxe4 {[%clk 0:01:35.5]} 27... Nxe4 {[%clk 0:00:04.4]} 28.
Qf3 {[%clk 0:01:34.6]} 28... Qe5 {[%clk 0:00:02.8]} 29. Re3 {[%clk 0:01:26.6]}
29... Qf6 {[%clk 0:00:02.5]} 30. Qf4 {[%clk 0:01:23.1]} 30... Ng5 {[%clk
0:00:01.8]} 31. Rxe6 {[%clk 0:01:17.6]} 31... Rxe6 {[%clk 0:00:02.7]} 32. Kg2
{[%clk 0:01:07.6]} 32... Re7 {[%clk 0:00:02.9]} 33. Rd1 {[%clk 0:01:04.9]} 33...
Ne6 {[%clk 0:00:02.5]} 34. Qf3 {[%clk 0:01:00.7]} 34... f4 {[%clk 0:00:02.8]}
35. Re1 {[%clk 0:00:50.2]} 35... fxg3 {[%clk 0:00:02.7]} 36. Qxf6+ {[%clk
0:00:34.8]} 36... Kxf6 {[%clk 0:00:03.6]} 37. Kxg3 {[%clk 0:00:35.3]} 37... Rg7
{[%clk 0:00:02.8]} 38. Rd1 {[%clk 0:00:30.3]} 38... Kg5 {[%clk 0:00:02.5]} 39.
Re1 {[%clk 0:00:29.1]} 39... Nf8 {[%clk 0:00:01.7]} 40. Re5+ {[%clk 0:00:20.6]}
40... Kf6 {[%clk 0:00:02.1]} 41. Rxa5 {[%clk 0:00:21.3]} 41... Nxg6 {[%clk
0:00:02.5]} 42. Bxg6 {[%clk 0:00:21.5]} 42... Rxg6+ {[%clk 0:00:03.4]} 43. Kf4
{[%clk 0:00:22.4]} 43... Rg1 {[%clk 0:00:03.6]} 44. Ra7 {[%clk 0:00:20.8]} 44...
Rc1 {[%clk 0:00:03.7]} 45. c4 {[%clk 0:00:18]} 45... b6 {[%clk 0:00:02.5]} 46.
Ra6 {[%clk 0:00:17.7]} 46... Rc2 {[%clk 0:00:01.5]} 47. f3 {[%clk 0:00:18.1]}
47... Rc3 {[%clk 0:00:01.8]} 48. Rxb6 {[%clk 0:00:18]} 1-0

[Event "*** Titled Tuesday Blitz"]
[Site "Chess.com"]
[Date "2020.04.07"]
[Round "4"]
[White "ahappypawn"]
[Black "IAgrest"]
[Result "0-1"]
[WhiteElo "2329"]
[BlackElo "2154"]
[TimeControl "180+1"]
[EndTime "13:41:14 PDT"]
[Termination "IAgrest won on time"]

1. Nf3 {[%clk 0:03:00.9]} 1... Nf6 {[%clk 0:02:59.3]} 2. c4 {[%clk 0:02:59.5]}
2... g6 {[%clk 0:02:59.2]} 3. Nc3 {[%clk 0:02:59]} 3... Bg7 {[%clk 0:02:59.4]}
4. g3 {[%clk 0:02:59.2]} 4... O-O {[%clk 0:02:59.5]} 5. Bg2 {[%clk 0:02:59.4]}
5... d6 {[%clk 0:02:59.9]} 6. O-O {[%clk 0:02:59.4]} 6... a6 {[%clk 0:02:54.4]}
7. d4 {[%clk 0:02:55.6]} 7... Nbd7 {[%clk 0:02:53.4]} 8. e4 {[%clk 0:02:54.1]}
8... e5 {[%clk 0:02:52.9]} 9. Re1 {[%clk 0:02:53.2]} 9... exd4 {[%clk
0:02:50.4]} 10. Nxd4 {[%clk 0:02:51.5]} 10... Ng4 {[%clk 0:02:49.8]} 11. h3
{[%clk 0:02:34.9]} 11... Qf6 {[%clk 0:02:44]} 12. Nf3 {[%clk 0:02:15.4]} 12...
Nge5 {[%clk 0:02:43.3]} 13. Nd5 {[%clk 0:02:15.9]} 13... Qd8 {[%clk 0:02:26.9]}
14. Nxe5 {[%clk 0:02:08.3]} 14... Nxe5 {[%clk 0:02:26.4]} 15. Qc2 {[%clk
0:01:58.4]} 15... c6 {[%clk 0:02:22.9]} 16. Ne3 {[%clk 0:01:57.1]} 16... Qf6
{[%clk 0:01:41.6]} 17. f4 {[%clk 0:01:50.2]} 17... Nd7 {[%clk 0:01:40.3]} 18.
Ng4 {[%clk 0:01:40.2]} 18... Qe7 {[%clk 0:01:39.2]} 19. Bd2 {[%clk 0:01:37.3]}
19... h5 {[%clk 0:01:33.7]} 20. Ne3 {[%clk 0:01:36.4]} 20... Nc5 {[%clk
0:01:30.6]} 21. Rad1 {[%clk 0:01:29.5]} 21... h4 {[%clk 0:01:28.5]} 22. g4
{[%clk 0:01:09.4]} 22... Ne6 {[%clk 0:01:26.8]} 23. Rf1 {[%clk 0:00:58.8]} 23...
Nd4 {[%clk 0:01:16.9]} 24. Qd3 {[%clk 0:00:58.5]} 24... Rb8 {[%clk 0:00:53.3]}
25. Bc3 {[%clk 0:00:56.3]} 25... c5 {[%clk 0:00:53.2]} 26. Nd5 {[%clk
0:00:54.8]} 26... Qd8 {[%clk 0:00:52.8]} 27. f5 {[%clk 0:00:49.7]} 27... Be5
{[%clk 0:00:45.5]} 28. f6 {[%clk 0:00:47.5]} 28... Be6 {[%clk 0:00:32.6]} 29.
Ne7+ {[%clk 0:00:42]} 29... Kh7 {[%clk 0:00:28]} 30. g5 {[%clk 0:00:40.9]} 30...
Qd7 {[%clk 0:00:19.1]} 31. Be1 {[%clk 0:00:31.2]} 31... b5 {[%clk 0:00:17.3]}
32. b3 {[%clk 0:00:30]} 32... bxc4 {[%clk 0:00:17]} 33. bxc4 {[%clk 0:00:30.9]}
33... Qa4 {[%clk 0:00:16.5]} 34. Rc1 {[%clk 0:00:21.8]} 34... Qxa2 {[%clk
0:00:13.4]} 35. Bxh4 {[%clk 0:00:20.7]} 35... Rb2 {[%clk 0:00:12.7]} 36. Rf2
{[%clk 0:00:19.7]} 36... Ne2+ {[%clk 0:00:07.8]} 37. Rxe2 {[%clk 0:00:13.3]}
37... Rxe2 {[%clk 0:00:07.5]} 38. Bf1 {[%clk 0:00:13.2]} 38... Bd4+ {[%clk
0:00:06.8]} 39. Qxd4 {[%clk 0:00:08]} 39... cxd4 {[%clk 0:00:06.4]} 40. Bxe2
{[%clk 0:00:07]} 40... Qxe2 {[%clk 0:00:07.3]} 41. Bf2 {[%clk 0:00:06.2]} 41...
d3 {[%clk 0:00:07.1]} 42. Re1 {[%clk 0:00:05.3]} 42... Qf3 {[%clk 0:00:07.3]}
43. Re3 {[%clk 0:00:05.1]} 43... Qd1+ {[%clk 0:00:06.6]} 44. Kg2 {[%clk
0:00:04.1]} 44... d2 {[%clk 0:00:06.4]} 0-1

[Event "*** Titled Tuesday Blitz"]
[Site "Chess.com"]
[Date "2020.04.07"]
[Round "4"]
[White "Treacherous_horse64"]
[Black "LimeInTheCoconut"]
[Result "0-1"]
[WhiteElo "2177"]
[BlackElo "2508"]
[TimeControl "180+1"]
[EndTime "13:41:15 PDT"]
[Termination "LimeInTheCoconut won by checkmate"]

1. d4 {[%clk 0:03:00.9]} 1... Nf6 {[%clk 0:02:59.6]} 2. Nf3 {[%clk 0:03:01.1]}
2... e6 {[%clk 0:02:56.9]} 3. e3 {[%clk 0:02:57]} 3... b6 {[%clk 0:02:55.3]} 4.
Nbd2 {[%clk 0:02:57]} 4... Bb7 {[%clk 0:02:55.3]} 5. Bd3 {[%clk 0:02:57.4]} 5...
d5 {[%clk 0:02:54]} 6. a3 {[%clk 0:02:53]} 6... Nbd7 {[%clk 0:02:53]} 7. b4
{[%clk 0:02:53]} 7... Bd6 {[%clk 0:02:48.1]} 8. Bb2 {[%clk 0:02:52.8]} 8... O-O
{[%clk 0:02:47.7]} 9. c4 {[%clk 0:02:52.9]} 9... c5 {[%clk 0:02:44.6]} 10. bxc5
{[%clk 0:02:53.8]} 10... bxc5 {[%clk 0:02:43]} 11. O-O {[%clk 0:02:54.1]} 11...
cxd4 {[%clk 0:02:30]} 12. Nxd4 {[%clk 0:02:43.9]} 12... Ne5 {[%clk 0:02:22.9]}
13. Be2 {[%clk 0:02:36.3]} 13... Rc8 {[%clk 0:02:15.6]} 14. cxd5 {[%clk
0:02:35.6]} 14... Nxd5 {[%clk 0:02:11.7]} 15. Qb3 {[%clk 0:02:10.4]} 15... Ba8
{[%clk 0:02:03.2]} 16. Rfc1 {[%clk 0:02:04.6]} 16... Qe7 {[%clk 0:01:54.1]} 17.
N2f3 {[%clk 0:01:57.8]} 17... Nxf3+ {[%clk 0:01:48]} 18. Nxf3 {[%clk 0:01:58.7]}
18... Rb8 {[%clk 0:01:44.8]} 19. Qa2 {[%clk 0:01:56.2]} 19... Nb6 {[%clk
0:01:31.6]} 20. Be5 {[%clk 0:01:39.1]} 20... Bxe5 {[%clk 0:00:56.1]} 21. Nxe5
{[%clk 0:01:40]} 21... Bxg2 {[%clk 0:00:54.6]} 22. Kxg2 {[%clk 0:01:30.3]} 22...
Qg5+ {[%clk 0:00:54.8]} 23. Ng4 {[%clk 0:01:30.5]} 23... h5 {[%clk 0:00:55.3]}
24. h3 {[%clk 0:00:37.5]} 24... hxg4 {[%clk 0:00:54.1]} 25. hxg4 {[%clk
0:00:38.4]} 25... Nd5 {[%clk 0:00:48.6]} 26. Rh1 {[%clk 0:00:33.2]} 26... Nf6
{[%clk 0:00:37.5]} 27. Qc4 {[%clk 0:00:30.3]} 27... e5 {[%clk 0:00:30.1]} 28.
Rh3 {[%clk 0:00:23.8]} 28... g6 {[%clk 0:00:19.7]} 29. Rah1 {[%clk 0:00:23.9]}
29... Kg7 {[%clk 0:00:19.3]} 30. Qa4 {[%clk 0:00:22.7]} 30... Rh8 {[%clk
0:00:18]} 31. Rxh8 {[%clk 0:00:22]} 31... Rxh8 {[%clk 0:00:17.6]} 32. Rxh8
{[%clk 0:00:22.9]} 32... Kxh8 {[%clk 0:00:18.5]} 33. Qc4 {[%clk 0:00:19.8]}
33... Kg7 {[%clk 0:00:18]} 34. Qb4 {[%clk 0:00:18.4]} 34... e4 {[%clk
0:00:17.6]} 35. Kg3 {[%clk 0:00:17]} 35... Qe5+ {[%clk 0:00:15.9]} 36. Kh3
{[%clk 0:00:16.7]} 36... a5 {[%clk 0:00:16.6]} 37. Qc4 {[%clk 0:00:15.3]} 37...
Nh7 {[%clk 0:00:16.1]} 38. Qa4 {[%clk 0:00:14.1]} 38... Ng5+ {[%clk 0:00:15.9]}
39. Kg2 {[%clk 0:00:14]} 39... f5 {[%clk 0:00:11.7]} 40. gxf5 {[%clk 0:00:13.8]}
40... gxf5 {[%clk 0:00:12.6]} 41. Qd7+ {[%clk 0:00:13.8]} 41... Kh6 {[%clk
0:00:12.4]} 42. Qd8 {[%clk 0:00:13.4]} 42... Qg7 {[%clk 0:00:10.7]} 43. Qxa5
{[%clk 0:00:12.6]} 43... Nf3+ {[%clk 0:00:10.6]} 44. Kh3 {[%clk 0:00:11.4]}
44... Qg4# {[%clk 0:00:09.9]} 0-1

[Event "*** Titled Tuesday Blitz"]
[Site "Chess.com"]
[Date "2020.04.07"]
[Round "4"]
[White "SimonKnightRivendell"]
[Black "AlphaZ3r0"]
[Result "0-1"]
[WhiteElo "1893"]
[BlackElo "2256"]
[TimeControl "180+1"]
[EndTime "13:41:16 PDT"]
[Termination "AlphaZ3r0 won by resignation"]

1. d4 {[%clk 0:03:00.9]} 1... d5 {[%clk 0:02:52.8]} 2. c4 {[%clk 0:02:59.8]}
2... dxc4 {[%clk 0:02:53.7]} 3. Nf3 {[%clk 0:02:58.8]} 3... Nf6 {[%clk
0:02:48.4]} 4. Nc3 {[%clk 0:02:57.9]} 4... a6 {[%clk 0:02:38.9]} 5. a4 {[%clk
0:02:57.3]} 5... Nc6 {[%clk 0:02:36.3]} 6. e3 {[%clk 0:02:56.6]} 6... e5 {[%clk
0:02:33]} 7. dxe5 {[%clk 0:02:37.5]} 7... Qxd1+ {[%clk 0:02:31.3]} 8. Nxd1
{[%clk 0:02:37.4]} 8... Ng4 {[%clk 0:02:32]} 9. Bxc4 {[%clk 0:02:36.2]} 9...
Ngxe5 {[%clk 0:02:27.1]} 10. Nxe5 {[%clk 0:02:36]} 10... Nxe5 {[%clk 0:02:28]}
11. Be2 {[%clk 0:02:33.9]} 11... Bf5 {[%clk 0:02:22.1]} 12. O-O {[%clk
0:02:31.3]} 12... O-O-O {[%clk 0:02:15.8]} 13. Nc3 {[%clk 0:02:25.1]} 13... Bb4
{[%clk 0:02:12.8]} 14. Rd1 {[%clk 0:02:22.4]} 14... Bc2 {[%clk 0:02:05.5]} 15.
Rxd8+ {[%clk 0:02:19.9]} 15... Rxd8 {[%clk 0:02:06.4]} 16. f4 {[%clk 0:02:18.1]}
16... Nd3 {[%clk 0:02:01.5]} 17. Bf3 {[%clk 0:02:00.3]} 17... Bc5 {[%clk
0:01:50.3]} 18. Kf1 {[%clk 0:01:17.6]} 18... Bb3 {[%clk 0:01:32.8]} 19. Be4
{[%clk 0:01:08.7]} 19... Nxc1 {[%clk 0:01:26.8]} 20. Rxc1 {[%clk 0:01:07.7]}
20... Bxe3 {[%clk 0:01:26.8]} 21. Re1 {[%clk 0:01:01.8]} 21... Bc4+ {[%clk
0:01:17.9]} 22. Ne2 {[%clk 0:00:59.2]} 22... g6 {[%clk 0:01:13.3]} 23. g3 {[%clk
0:00:57.3]} 23... f5 {[%clk 0:01:10.6]} 24. Bf3 {[%clk 0:00:53]} 24... Rd2
{[%clk 0:01:09.6]} 25. b3 {[%clk 0:00:43.8]} 25... Bxb3 {[%clk 0:01:05.7]} 26.
Rb1 {[%clk 0:00:43.5]} 26... Rd1+ {[%clk 0:00:58.3]} 27. Rxd1 {[%clk 0:00:41.5]}
27... Bxd1 {[%clk 0:00:59.2]} 28. Ke1 {[%clk 0:00:31.8]} 28... Bxa4 {[%clk
0:00:58.1]} 29. Nc3 {[%clk 0:00:29.9]} 29... Bb3 {[%clk 0:00:52.2]} 30. Ke2
{[%clk 0:00:26.6]} 30... Bd4 {[%clk 0:00:48.9]} 31. Nd5 {[%clk 0:00:24]} 31...
Bc4+ {[%clk 0:00:48.1]} 32. Kd2 {[%clk 0:00:21.5]} 32... Kd7 {[%clk 0:00:48.4]}
33. Ne3 {[%clk 0:00:18.9]} 33... Bxe3+ {[%clk 0:00:46.5]} 34. Kxe3 {[%clk
0:00:18.2]} 34... b5 {[%clk 0:00:47.4]} 35. Kd4 {[%clk 0:00:15.6]} 35... Kd6
{[%clk 0:00:47.8]} 36. Bb7 {[%clk 0:00:14.3]} 36... c5+ {[%clk 0:00:48.7]} 37.
Kc3 {[%clk 0:00:13.3]} 37... a5 {[%clk 0:00:49.6]} 38. Ba6 {[%clk 0:00:11.9]}
38... b4+ {[%clk 0:00:48.8]} 39. Kxc4 {[%clk 0:00:10.6]} 39... Kc6 {[%clk
0:00:45.8]} 40. Bc8 {[%clk 0:00:09.4]} 40... a4 {[%clk 0:00:45]} 41. Be6 {[%clk
0:00:08.1]} 41... b3 {[%clk 0:00:43.2]} 42. Kc3 {[%clk 0:00:07.2]} 42... Kb5
{[%clk 0:00:41.3]} 43. Bg8 {[%clk 0:00:07.4]} 43... h6 {[%clk 0:00:39.4]} 44.
Bf7 {[%clk 0:00:06.7]} 44... g5 {[%clk 0:00:39]} 45. Be8+ {[%clk 0:00:06.7]}
45... Ka5 {[%clk 0:00:38.8]} 46. Bd7 {[%clk 0:00:06.9]} 46... gxf4 {[%clk
0:00:38]} 47. gxf4 {[%clk 0:00:06.9]} 47... c4 {[%clk 0:00:38.4]} 48. Bxf5
{[%clk 0:00:06.4]} 48... a3 {[%clk 0:00:37.8]} 49. Kxc4 {[%clk 0:00:04.9]} 49...
a2 {[%clk 0:00:36.3]} 50. Kxb3 {[%clk 0:00:04.1]} 50... a1=Q {[%clk 0:00:36.5]}
0-1

[Event "*** Titled Tuesday Blitz"]
[Site "Chess.com"]
[Date "2020.04.07"]
[Round "4"]
[White "aloe_normansen"]
[Black "MFguimaraes"]
[Result "1/2-1/2"]
[WhiteElo "2177"]
[BlackElo "2398"]
[TimeControl "180+1"]
[EndTime "13:41:17 PDT"]
[Termination "Game drawn by agreement"]

1. e4 {[%clk 0:03:00.9]} 1... e5 {[%clk 0:02:58.7]} 2. Nf3 {[%clk 0:03:00.8]}
2... Nc6 {[%clk 0:02:58.9]} 3. Bc4 {[%clk 0:03:01]} 3... Nf6 {[%clk 0:02:59]} 4.
d3 {[%clk 0:03:00.2]} 4... h6 {[%clk 0:02:58.5]} 5. O-O {[%clk 0:03:00.1]} 5...
d6 {[%clk 0:02:59]} 6. c3 {[%clk 0:02:58.3]} 6... g5 {[%clk 0:02:59.2]} 7. d4
{[%clk 0:02:39.5]} 7... g4 {[%clk 0:02:49.9]} 8. dxe5 {[%clk 0:02:34]} 8... gxf3
{[%clk 0:02:49.2]} 9. exf6 {[%clk 0:02:32.6]} 9... fxg2 {[%clk 0:02:49.6]} 10.
Re1 {[%clk 0:02:32.2]} 10... Qxf6 {[%clk 0:02:46.8]} 11. f4 {[%clk 0:02:20.2]}
11... Be6 {[%clk 0:02:37.2]} 12. Bd5 {[%clk 0:02:11.5]} 12... Bxd5 {[%clk
0:02:25.7]} 13. exd5+ {[%clk 0:02:10.7]} 13... Ne7 {[%clk 0:02:26]} 14. Qg4
{[%clk 0:02:09]} 14... Qg6 {[%clk 0:02:13.1]} 15. Qh3 {[%clk 0:01:55.4]} 15...
h5 {[%clk 0:02:07]} 16. f5 {[%clk 0:01:44.9]} 16... Qg4 {[%clk 0:02:06.9]} 17.
Qxg4 {[%clk 0:01:43.7]} 17... hxg4 {[%clk 0:02:07.8]} 18. f6 {[%clk 0:01:44.2]}
18... Kd7 {[%clk 0:02:07.4]} 19. fxe7 {[%clk 0:01:43.8]} 19... Bxe7 {[%clk
0:02:08.3]} 20. Kxg2 {[%clk 0:01:43.8]} 20... Rh3 {[%clk 0:02:08.4]} 21. Bf4
{[%clk 0:01:39.9]} 21... Rah8 {[%clk 0:02:04.5]} 22. Nd2 {[%clk 0:01:35.3]}
22... Bf6 {[%clk 0:01:49.8]} 23. Nf1 {[%clk 0:01:25.7]} 23... Rf3 {[%clk
0:01:47.3]} 24. Bg3 {[%clk 0:01:19]} 24... Bg5 {[%clk 0:01:44.7]} 25. Rad1
{[%clk 0:01:15.9]} 25... f5 {[%clk 0:01:44.3]} 26. Nd2 {[%clk 0:00:59.9]} 26...
Bxd2 {[%clk 0:01:29.8]} 27. Rxd2 {[%clk 0:00:59.9]} 27... f4 {[%clk 0:01:30.2]}
28. Bf2 {[%clk 0:00:56.9]} 28... Rfh3 {[%clk 0:01:19]} 29. Bg1 {[%clk
0:00:56.1]} 29... g3 {[%clk 0:01:18.5]} 30. hxg3 {[%clk 0:00:48.5]} 30... Rxg3+
{[%clk 0:01:18.6]} 31. Kf1 {[%clk 0:00:48.3]} 31... Rh1 {[%clk 0:01:16.5]} 32.
Rg2 {[%clk 0:00:48.3]} 32... Rf3+ {[%clk 0:01:12.8]} 33. Ke2 {[%clk 0:00:48.4]}
33... Rfh3 {[%clk 0:00:59.8]} 34. Kd2 {[%clk 0:00:48.2]} 34... Rh7 {[%clk
0:00:47.1]} 35. Bd4 {[%clk 0:00:45]} 35... f3 {[%clk 0:00:45.2]} 36. Rg7+ {[%clk
0:00:43.9]} 36... Rxg7 {[%clk 0:00:45]} 37. Bxg7 {[%clk 0:00:44.5]} 37... Rh2+
{[%clk 0:00:45.4]} 38. Ke3 {[%clk 0:00:42.7]} 38... Rxb2 {[%clk 0:00:44.8]} 39.
Kxf3 {[%clk 0:00:40.8]} 39... Rxa2 {[%clk 0:00:41.6]} 40. Bf6 {[%clk 0:00:40.7]}
40... c6 {[%clk 0:00:38.4]} 41. Re7+ {[%clk 0:00:39.9]} 41... Kc8 {[%clk
0:00:38.3]} 42. Re8+ {[%clk 0:00:36.1]} 42... Kd7 {[%clk 0:00:38.3]} 43. Rb8
{[%clk 0:00:30.1]} 43... Kc7 {[%clk 0:00:38.2]} 44. Re8 {[%clk 0:00:29.2]} 44...
cxd5 {[%clk 0:00:38]} 45. Bd4 {[%clk 0:00:28.2]} 45... b6 {[%clk 0:00:36.4]} 46.
Re7+ {[%clk 0:00:28.1]} 46... Kc6 {[%clk 0:00:36.2]} 47. Ke3 {[%clk 0:00:28.4]}
47... a5 {[%clk 0:00:35]} 48. Kd3 {[%clk 0:00:28]} 48... b5 {[%clk 0:00:35.2]}
49. Re2 {[%clk 0:00:26.7]} 49... Rxe2 {[%clk 0:00:33.5]} 50. Kxe2 {[%clk
0:00:26.8]} 50... b4 {[%clk 0:00:34]} 51. cxb4 {[%clk 0:00:23.7]} 51... axb4
{[%clk 0:00:33.9]} 1/2-1/2

[Event "*** Titled Tuesday Blitz"]
[Site "Chess.com"]
[Date "2020.04.07"]
[Round "4"]
[White "Alexander_Moskalenko"]
[Black "Etoilegeniale"]
[Result "0-1"]
[WhiteElo "2925"]
[BlackElo "2511"]
[TimeControl "180+1"]
[EndTime "13:41:19 PDT"]
[Termination "Etoilegeniale won on time"]

1. e4 {[%clk 0:03:00.7]} 1... c5 {[%clk 0:02:59]} 2. Nc3 {[%clk 0:02:57.3]} 2...
Nc6 {[%clk 0:02:57.9]} 3. Bb5 {[%clk 0:02:56.4]} 3... Nd4 {[%clk 0:02:57]} 4.
Bc4 {[%clk 0:02:56.1]} 4... e6 {[%clk 0:02:56.1]} 5. Nf3 {[%clk 0:02:56.7]} 5...
Nf6 {[%clk 0:02:55.9]} 6. d3 {[%clk 0:02:54.9]} 6... d5 {[%clk 0:02:47.3]} 7.
exd5 {[%clk 0:02:55]} 7... exd5 {[%clk 0:02:47.3]} 8. Bb3 {[%clk 0:02:54.6]}
8... Nxb3 {[%clk 0:02:18.8]} 9. axb3 {[%clk 0:02:55.5]} 9... Be7 {[%clk
0:02:18.8]} 10. O-O {[%clk 0:02:55.3]} 10... O-O {[%clk 0:02:18.5]} 11. Ne5
{[%clk 0:02:53.1]} 11... Bd6 {[%clk 0:02:08.2]} 12. Re1 {[%clk 0:02:52.2]} 12...
d4 {[%clk 0:01:59.3]} 13. Nb5 {[%clk 0:02:51.5]} 13... Bb8 {[%clk 0:01:59]} 14.
Na3 {[%clk 0:02:45.8]} 14... Re8 {[%clk 0:01:48]} 15. Bf4 {[%clk 0:02:44.6]}
15... Ng4 {[%clk 0:01:26]} 16. Nac4 {[%clk 0:02:33.8]} 16... Nxe5 {[%clk
0:01:19.2]} 17. Bxe5 {[%clk 0:02:33.8]} 17... Bxe5 {[%clk 0:00:49.2]} 18. Nxe5
{[%clk 0:02:34.7]} 18... Be6 {[%clk 0:00:47.6]} 19. Qh5 {[%clk 0:02:34.8]} 19...
g6 {[%clk 0:00:44.8]} 20. Qf3 {[%clk 0:02:25]} 20... Qc7 {[%clk 0:00:37.2]} 21.
Qf4 {[%clk 0:02:19.5]} 21... Re7 {[%clk 0:00:32.9]} 22. h4 {[%clk 0:02:16.5]}
22... Rae8 {[%clk 0:00:32.3]} 23. Kh2 {[%clk 0:01:42.5]} 23... Bc8 {[%clk
0:00:20.6]} 24. Rxa7 {[%clk 0:01:26.2]} 24... Rxe5 {[%clk 0:00:19.9]} 25. Rea1
{[%clk 0:01:23.7]} 25... R5e7 {[%clk 0:00:18.6]} 26. Qxc7 {[%clk 0:01:24.1]}
26... Rxc7 {[%clk 0:00:18.5]} 27. Ra8 {[%clk 0:01:25]} 27... Rce7 {[%clk
0:00:18.5]} 28. R1a5 {[%clk 0:01:22.2]} 28... b6 {[%clk 0:00:15.3]} 29. Rb5
{[%clk 0:01:22]} 29... Re6 {[%clk 0:00:14.9]} 30. Rb8 {[%clk 0:01:17.7]} 30...
Re2 {[%clk 0:00:14.7]} 31. R5xb6 {[%clk 0:01:17]} 31... Rxf2 {[%clk 0:00:14.8]}
32. Rc6 {[%clk 0:01:15.6]} 32... Bd7 {[%clk 0:00:14.8]} 33. Rxe8+ {[%clk
0:01:12.7]} 33... Bxe8 {[%clk 0:00:14.6]} 34. Rxc5 {[%clk 0:01:13.6]} 34... Kg7
{[%clk 0:00:14.3]} 35. b4 {[%clk 0:01:13.9]} 35... Rf1 {[%clk 0:00:13.6]} 36. b5
{[%clk 0:01:12]} 36... Rb1 {[%clk 0:00:13.4]} 37. b3 {[%clk 0:01:08.4]} 37...
Ra1 {[%clk 0:00:13.6]} 38. b6 {[%clk 0:01:06.8]} 38... Ra6 {[%clk 0:00:13.4]}
39. b7 {[%clk 0:01:06.2]} 39... Rb6 {[%clk 0:00:13.4]} 40. Rc8 {[%clk
0:01:06.7]} 40... Rxb7 {[%clk 0:00:13.1]} 41. Rd8 {[%clk 0:01:07.5]} 41... Rc7
{[%clk 0:00:13.5]} 42. Rxe8 {[%clk 0:01:08.4]} 42... Rxc2 {[%clk 0:00:12.7]} 43.
Re2 {[%clk 0:01:09.3]} 43... Rxe2 {[%clk 0:00:12.2]} 0-1